[Event "Titled Tuesday Blitz May 2 Early 2023"]
[White "Aung Thant Zin"]
[Black "Pujari, Rucha"]
[WhiteFideId "13000063"]
[BlackFideId "5024528"]
[WhiteElo "2278"]
[BlackElo "2129"]
[Result "0-1"]
[Round "02"]
[TimeControl "180+2"]
[Date "2023.05.02"]
[WhiteClock "0:00:00"]
[BlackClock "0:00:00"]

1. e4 {[%clk 0:00:01]}  e5 {[%clk 0:00:01]} 2. Nf3 {[%clk 0:00:01]}  Nc6 {[%clk 0:00:01]} 3. d4 {[%clk 0:00:01]}  exd4 {[%clk 0:00:01]} 4. Nxd4 {[%clk 0:00:01]}  Bb4+ {[%clk 0:00:01]} 5. c3 {[%clk 0:00:01]}  Be7 {[%clk 0:00:01]} 6. Bc4 {[%clk 0:00:01]}  d6 {[%clk 0:00:01]} 7. O-O {[%clk 0:00:01]}  Nf6 {[%clk 0:00:01]} 8. Qe2 {[%clk 0:00:01]}  O-O {[%clk 0:00:01]} 9. Nd2 {[%clk 0:00:01]}  Re8 {[%clk 0:00:01]} 10. h3 {[%clk 0:00:01]}  Nxd4 {[%clk 0:00:01]} 11. cxd4 {[%clk 0:00:01]}  d5 {[%clk 0:00:01]} 12. exd5 {[%clk 0:00:01]}  Nxd5 {[%clk 0:00:01]} 13. Qf3 {[%clk 0:00:01]}  Be6 {[%clk 0:00:01]} 14. Ne4 {[%clk 0:00:01]}  c6 {[%clk 0:00:01]} 15. Be3 {[%clk 0:00:01]}  h6 {[%clk 0:00:00]} 16. Rad1 {[%clk 0:00:01]}  Qa5 {[%clk 0:00:00]} 17. Nc5 {[%clk 0:00:01]}  Bxc5 {[%clk 0:00:00]} 18. dxc5 {[%clk 0:00:01]}  Nxe3 {[%clk 0:00:00]} 19. Bxe6 {[%clk 0:00:00]}  Rxe6 {[%clk 0:00:00]} 20. fxe3 {[%clk 0:00:00]}  Rf6 {[%clk 0:00:00]} 21. Qg3 {[%clk 0:00:00]}  Rxf1+ {[%clk 0:00:00]} 22. Rxf1 {[%clk 0:00:00]}  Qxc5 {[%clk 0:00:00]} 23. Qc7 {[%clk 0:00:00]}  Qxe3+ {[%clk 0:00:00]} 24. Kh1 {[%clk 0:00:00]}  Qe8 {[%clk 0:00:00]} 25. Qxb7 {[%clk 0:00:00]}  Rb8 {[%clk 0:00:00]} 26. Qxa7 {[%clk 0:00:00]}  Rxb2 {[%clk 0:00:00]} 27. a4 {[%clk 0:00:00]}  f6 {[%clk 0:00:00]} 28. Qd4 {[%clk 0:00:00]}  Qe2 {[%clk 0:00:00]} 29. Rg1 {[%clk 0:00:00]}  Ra2 {[%clk 0:00:00]} 30. a5 {[%clk 0:00:00]}  Kh7 {[%clk 0:00:00]} 31. Qb6 {[%clk 0:00:00]}  Qb5 {[%clk 0:00:00]} 32. Qc7 {[%clk 0:00:00]}  Rxa5 {[%clk 0:00:00]} 33. Qd7 {[%clk 0:00:00]}  Qd5 {[%clk 0:00:00]} 34. Qg4 {[%clk 0:00:00]}  Ra3 {[%clk 0:00:00]} 35. Rc1 {[%clk 0:00:00]}  c5 {[%clk 0:00:00]} 36. Qc8 {[%clk 0:00:00]}  Ra2 {[%clk 0:00:00]} 37. Qg4 {[%clk 0:00:00]}  Rd2 {[%clk 0:00:00]} 38. Qg3 {[%clk 0:00:00]}  Rd1+ {[%clk 0:00:00]} 39. Rxd1 {[%clk 0:00:00]}  Qxd1+ {[%clk 0:00:00]} 40. Kh2 {[%clk 0:00:00]}  Qd4 {[%clk 0:00:00]} 41. Qe1 {[%clk 0:00:00]}  Qe5+ {[%clk 0:00:00]} 42. Qxe5 {[%clk 0:00:00]}  fxe5 {[%clk 0:00:00]} 43. Kg3 {[%clk 0:00:00]}  Kg6 {[%clk 0:00:00]} 44. Kf3 {[%clk 0:00:00]}  Kf5 {[%clk 0:00:00]} 45. Ke3 {[%clk 0:00:00]}  c4 {[%clk 0:00:00]} 46. Kd2 {[%clk 0:00:00]}  Kf4 {[%clk 0:00:00]} 47. Kc3 {[%clk 0:00:00]}  Kg3 {[%clk 0:00:00]} 48. Kxc4 {[%clk 0:00:00]}  Kxg2 {[%clk 0:00:00]} 49. Kd5 {[%clk 0:00:00]}  Kxh3 {[%clk 0:00:00]} 0-1


[Site "https://www.chess.com"]

[Event "Titled Tuesday Blitz May 2 Early 2023"]
[White "Vargas, Mauricio"]
[Black "Gatterer, Florian"]
[WhiteFideId "4404572"]
[BlackFideId "811688"]
[WhiteElo "1998"]
[BlackElo "2221"]
[Result "0-1"]
[Round "02"]
[TimeControl "180+2"]
[Date "2023.05.02"]
[WhiteClock "0:00:50"]
[BlackClock "0:01:04"]

1. e4 {[%clk 0:02:00]}  c5 {[%clk 0:02:59]} 2. Nc3 {[%clk 0:02:00]}  e6 {[%clk 0:02:59]} 3. f4 {[%clk 0:02:00]}  d5 {[%clk 0:02:51]} 4. Nf3 {[%clk 0:02:01]}  dxe4 {[%clk 0:02:51]} 5. Nxe4 {[%clk 0:02:01]}  Nf6 {[%clk 0:02:51]} 6. Ng3 {[%clk 0:02:01]}  Bd6 {[%clk 0:02:44]} 7. d3 {[%clk 0:01:54]}  O-O {[%clk 0:02:42]} 8. Ne4 {[%clk 0:01:50]}  Nxe4 {[%clk 0:02:18]} 9. dxe4 {[%clk 0:01:50]}  Qc7 {[%clk 0:02:19]} 10. e5 {[%clk 0:01:49]}  Be7 {[%clk 0:02:19]} 11. Be3 {[%clk 0:01:45]}  b6 {[%clk 0:02:13]} 12. c4 {[%clk 0:01:44]}  Bb7 {[%clk 0:02:12]} 13. Bd3 {[%clk 0:01:43]}  Nc6 {[%clk 0:02:10]} 14. Qe2 {[%clk 0:01:42]}  Rad8 {[%clk 0:02:09]} 15. Rd1 {[%clk 0:01:41]}  g6 {[%clk 0:02:06]} 16. O-O {[%clk 0:01:39]}  Rd7 {[%clk 0:02:01]} 17. Bc2 {[%clk 0:01:36]}  Rfd8 {[%clk 0:02:01]} 18. Rxd7 {[%clk 0:01:35]}  Rxd7 {[%clk 0:02:01]} 19. Rd1 {[%clk 0:01:35]}  Qd8 {[%clk 0:02:00]} 20. Rxd7 {[%clk 0:01:32]}  Qxd7 {[%clk 0:02:01]} 21. Nd2 {[%clk 0:01:31]}  Nd4 {[%clk 0:02:00]} 22. Qd1 {[%clk 0:01:24]}  Nxc2 {[%clk 0:01:49]} 23. Qxc2 {[%clk 0:01:24]}  Qc6 {[%clk 0:01:49]} 24. Nf3 {[%clk 0:01:22]}  h5 {[%clk 0:01:47]} 25. b3 {[%clk 0:01:17]}  a5 {[%clk 0:01:39]} 26. a3 {[%clk 0:01:05]}  Qe4 {[%clk 0:01:33]} 27. Qd2 {[%clk 0:01:03]}  Qb1+ {[%clk 0:01:23]} 28. Kf2 {[%clk 0:01:01]}  Bxf3 {[%clk 0:01:17]} 29. gxf3 {[%clk 0:00:59]}  Qxb3 {[%clk 0:01:11]} 30. Qd7 {[%clk 0:00:55]}  Bh4+ {[%clk 0:01:10]} 31. Kg2 {[%clk 0:00:53]}  Qxe3 {[%clk 0:01:05]} 32. Qd8+ {[%clk 0:00:50]}  Bxd8 {[%clk 0:01:04]} 0-1


[Site "https://www.chess.com"]

[Event "Titled Tuesday Blitz May 2 Early 2023"]
[White "Fernandez Siles, Luis"]
[Black "Sanchez, Robert"]
[WhiteFideId "2209420"]
[BlackFideId "2034360"]
[WhiteElo "2195"]
[BlackElo "1966"]
[Result "1-0"]
[Round "02"]
[TimeControl "180+2"]
[Date "2023.05.02"]
[WhiteClock "0:00:00"]
[BlackClock "0:00:00"]

1. d4 {[%clk 0:00:01]}  Nf6 {[%clk 0:00:01]} 2. Bg5 {[%clk 0:00:01]}  e6 {[%clk 0:00:01]} 3. e4 {[%clk 0:00:01]}  Be7 {[%clk 0:00:01]} 4. e5 {[%clk 0:00:01]}  Ne4 {[%clk 0:00:01]} 5. Be3 {[%clk 0:00:01]}  c5 {[%clk 0:00:01]} 6. Qg4 {[%clk 0:00:01]}  cxd4 {[%clk 0:00:01]} 7. Bxd4 {[%clk 0:00:01]}  Ng5 {[%clk 0:00:01]} 8. h4 {[%clk 0:00:01]}  h5 {[%clk 0:00:01]} 9. Qg3 {[%clk 0:00:01]}  Nc6 {[%clk 0:00:01]} 10. c3 {[%clk 0:00:01]}  Nxd4 {[%clk 0:00:01]} 11. cxd4 {[%clk 0:00:01]}  Qa5+ {[%clk 0:00:01]} 12. Nc3 {[%clk 0:00:01]}  Ne4 {[%clk 0:00:01]} 13. Qxg7 {[%clk 0:00:00]}  Rf8 {[%clk 0:00:01]} 14. Ne2 {[%clk 0:00:00]}  Bb4 {[%clk 0:00:01]} 15. Rh3 {[%clk 0:00:00]}  b6 {[%clk 0:00:01]} 16. Re3 {[%clk 0:00:00]}  Bb7 {[%clk 0:00:01]} 17. f3 {[%clk 0:00:00]}  Nxc3 {[%clk 0:00:01]} 18. bxc3 {[%clk 0:00:00]}  Be7 {[%clk 0:00:01]} 19. g3 {[%clk 0:00:00]}  O-O-O {[%clk 0:00:01]} 20. Qh7 {[%clk 0:00:00]}  Kb8 {[%clk 0:00:01]} 21. Kf2 {[%clk 0:00:00]}  d6 {[%clk 0:00:01]} 22. exd6 {[%clk 0:00:00]}  Bxd6 {[%clk 0:00:01]} 23. Qc2 {[%clk 0:00:00]}  Rg8 {[%clk 0:00:00]} 24. f4 {[%clk 0:00:00]}  Be7 {[%clk 0:00:00]} 25. Bg2 {[%clk 0:00:00]}  Bxg2 {[%clk 0:00:00]} 26. Kxg2 {[%clk 0:00:00]}  Bxh4 {[%clk 0:00:00]} 27. Kf2 {[%clk 0:00:00]}  Be7 {[%clk 0:00:00]} 28. Qe4 {[%clk 0:00:00]}  h4 {[%clk 0:00:00]} 29. g4 {[%clk 0:00:00]}  Rxg4 {[%clk 0:00:00]} 30. Rh1 {[%clk 0:00:00]}  Qxa2 {[%clk 0:00:00]} 31. Kf3 {[%clk 0:00:00]}  Bd6 {[%clk 0:00:00]} 32. Rh3 {[%clk 0:00:00]}  Rdg8 {[%clk 0:00:00]} 33. Qc6 {[%clk 0:00:00]}  Bc7 {[%clk 0:00:00]} 34. d5 {[%clk 0:00:00]}  Qxd5+ {[%clk 0:00:00]} 35. Qxd5 {[%clk 0:00:00]}  exd5 {[%clk 0:00:00]} 36. Re7 {[%clk 0:00:00]}  a5 {[%clk 0:00:00]} 37. Nd4 {[%clk 0:00:00]}  Rg3+ {[%clk 0:00:00]} 38. Rxg3 {[%clk 0:00:00]}  hxg3 {[%clk 0:00:00]} 39. Kg2 {[%clk 0:00:00]}  a4 {[%clk 0:00:00]} 40. Nc6+ {[%clk 0:00:00]}  Kb7 {[%clk 0:00:00]} 41. Nb4 {[%clk 0:00:00]}  a3 {[%clk 0:00:00]} 42. Re2 {[%clk 0:00:00]}  Bxf4 {[%clk 0:00:00]} 43. Ra2 {[%clk 0:00:00]}  Re8 {[%clk 0:00:00]} 44. Nxd5 {[%clk 0:00:00]}  Bd6 {[%clk 0:00:00]} 45. Nf6 {[%clk 0:00:00]}  Re3 {[%clk 0:00:00]} 46. Rc2 {[%clk 0:00:00]} 1-0


[Site "https://www.chess.com"]

[Event "Titled Tuesday Blitz May 2 Early 2023"]
[White "Firouzja, Alireza"]
[Black "Nagy, Gabor"]
[WhiteFideId "12573981"]
[BlackFideId "737119"]
[WhiteElo "2904"]
[BlackElo "2514"]
[Result "1-0"]
[Round "03"]
[TimeControl "180+2"]
[Date "2023.05.02"]
[WhiteClock "0:01:43"]
[BlackClock "0:01:09"]

1. d4 {[%clk 0:03:00]}  d5 {[%clk 0:02:58]} 2. Bg5 {[%clk 0:03:01]}  c6 {[%clk 0:02:54]} 3. e3 {[%clk 0:03:00]}  Qb6 {[%clk 0:02:55]} 4. b3 {[%clk 0:03:00]}  Nf6 {[%clk 0:02:50]} 5. Bd3 {[%clk 0:03:00]}  g6 {[%clk 0:02:50]} 6. Nd2 {[%clk 0:03:00]}  Bg7 {[%clk 0:02:50]} 7. Ngf3 {[%clk 0:03:01]}  O-O {[%clk 0:02:50]} 8. O-O {[%clk 0:03:01]}  c5 {[%clk 0:02:46]} 9. c3 {[%clk 0:03:01]}  Nc6 {[%clk 0:02:45]} 10. a3 {[%clk 0:03:00]}  cxd4 {[%clk 0:02:39]} 11. cxd4 {[%clk 0:02:59]}  Bg4 {[%clk 0:02:36]} 12. h3 {[%clk 0:02:57]}  Bxf3 {[%clk 0:02:36]} 13. Nxf3 {[%clk 0:02:58]}  e6 {[%clk 0:02:35]} 14. b4 {[%clk 0:02:58]}  Rfc8 {[%clk 0:02:33]} 15. Rc1 {[%clk 0:02:52]}  a5 {[%clk 0:02:25]} 16. b5 {[%clk 0:02:35]}  Ne7 {[%clk 0:02:22]} 17. Ne5 {[%clk 0:02:36]}  Qd6 {[%clk 0:02:12]} 18. Qf3 {[%clk 0:02:32]}  Nf5 {[%clk 0:01:35]} 19. Rxc8+ {[%clk 0:02:28]}  Rxc8 {[%clk 0:01:34]} 20. g4 {[%clk 0:02:28]}  Ne4 {[%clk 0:01:32]} 21. Bxe4 {[%clk 0:02:23]}  dxe4 {[%clk 0:01:33]} 22. Qxe4 {[%clk 0:02:24]}  f6 {[%clk 0:01:22]} 23. Qxb7 {[%clk 0:01:55]}  Rf8 {[%clk 0:01:19]} 24. gxf5 {[%clk 0:01:52]}  fxg5 {[%clk 0:01:16]} 25. Nc4 {[%clk 0:01:43]}  Qd5 {[%clk 0:01:08]} 26. Qxd5 {[%clk 0:01:42]}  exd5 {[%clk 0:01:09]} 27. Nxa5 {[%clk 0:01:43]}  gxf5 {[%clk 0:01:09]} 28. Nc6 {[%clk 0:01:43]} 1-0


[Site "https://www.chess.com"]

[Event "Titled Tuesday Blitz May 2 Early 2023"]
[White "Zhao, Jun"]
[Black "Caruana, Fabiano"]
[WhiteFideId "8602522"]
[BlackFideId "2020009"]
[WhiteElo "2547"]
[BlackElo "2837"]
[Result "0-1"]
[Round "03"]
[TimeControl "180+2"]
[Date "2023.05.02"]
[WhiteClock "0:00:01"]
[BlackClock "0:01:45"]

1. e4 {[%clk 0:03:00]}  c5 {[%clk 0:02:59]} 2. Nf3 {[%clk 0:03:00]}  Nc6 {[%clk 0:02:57]} 3. Bb5 {[%clk 0:03:00]}  e6 {[%clk 0:02:54]} 4. Bxc6 {[%clk 0:02:58]}  bxc6 {[%clk 0:02:53]} 5. d3 {[%clk 0:02:57]}  Ne7 {[%clk 0:02:52]} 6. Qe2 {[%clk 0:02:56]}  Qc7 {[%clk 0:02:52]} 7. O-O {[%clk 0:02:52]}  Ng6 {[%clk 0:02:52]} 8. h4 {[%clk 0:02:46]}  Be7 {[%clk 0:02:41]} 9. g3 {[%clk 0:02:31]}  e5 {[%clk 0:02:40]} 10. Bg5 {[%clk 0:02:11]}  f6 {[%clk 0:02:39]} 11. Be3 {[%clk 0:02:06]}  d5 {[%clk 0:02:39]} 12. h5 {[%clk 0:02:01]}  Nf8 {[%clk 0:02:38]} 13. Nh4 {[%clk 0:02:02]}  g5 {[%clk 0:02:28]} 14. Nf5 {[%clk 0:01:53]}  Bxf5 {[%clk 0:02:28]} 15. exf5 {[%clk 0:01:54]}  Nd7 {[%clk 0:02:28]} 16. c4 {[%clk 0:01:52]}  h6 {[%clk 0:02:19]} 17. Bd2 {[%clk 0:01:45]}  O-O {[%clk 0:02:17]} 18. Nc3 {[%clk 0:01:45]}  Nb6 {[%clk 0:02:17]} 19. b3 {[%clk 0:01:40]}  Rad8 {[%clk 0:02:16]} 20. Rae1 {[%clk 0:01:38]}  Qd7 {[%clk 0:02:15]} 21. cxd5 {[%clk 0:01:04]}  cxd5 {[%clk 0:02:07]} 22. Qf3 {[%clk 0:00:57]}  Kg7 {[%clk 0:02:04]} 23. Rc1 {[%clk 0:00:55]}  Bd6 {[%clk 0:02:03]} 24. Nxd5 {[%clk 0:00:48]}  Qb7 {[%clk 0:02:01]} 25. Ba5 {[%clk 0:00:37]}  Qxd5 {[%clk 0:01:58]} 26. Qxd5 {[%clk 0:00:36]}  Nxd5 {[%clk 0:01:59]} 27. Bxd8 {[%clk 0:00:35]}  Rxd8 {[%clk 0:01:59]} 28. Kg2 {[%clk 0:00:31]}  Nb4 {[%clk 0:01:59]} 29. Rc4 {[%clk 0:00:20]}  Be7 {[%clk 0:01:55]} 30. Rd1 {[%clk 0:00:18]}  Kf7 {[%clk 0:01:48]} 31. Rd2 {[%clk 0:00:16]}  Rd4 {[%clk 0:01:47]} 32. Rxd4 {[%clk 0:00:08]}  cxd4 {[%clk 0:01:48]} 33. Kf3 {[%clk 0:00:07]}  Nd5 {[%clk 0:01:46]} 34. Rc2 {[%clk 0:00:03]}  Nc3 {[%clk 0:01:46]} 35. g4 {[%clk 0:00:02]}  Ba3 {[%clk 0:01:45]} 36. Kg2 {[%clk 0:00:02]}  Ke7 {[%clk 0:01:45]} 37. f3 {[%clk 0:00:02]}  Kd6 {[%clk 0:01:45]} 38. Kf2 {[%clk 0:00:02]}  Kc5 {[%clk 0:01:46]} 39. Ke1 {[%clk 0:00:03]}  Kb4 {[%clk 0:01:46]} 40. Kd2 {[%clk 0:00:02]}  a5 {[%clk 0:01:45]} 41. Ke1 {[%clk 0:00:03]}  a4 {[%clk 0:01:44]} 42. bxa4 {[%clk 0:00:03]}  Kxa4 {[%clk 0:01:45]} 43. Kd2 {[%clk 0:00:03]}  Bb4 {[%clk 0:01:45]} 44. Kc1 {[%clk 0:00:02]}  Ka3 {[%clk 0:01:45]} 45. Rd2 {[%clk 0:00:01]}  Nxa2+ {[%clk 0:01:45]} 46. Rxa2+ {[%clk 0:00:01]}  Kxa2 {[%clk 0:01:45]} 0-1


[Site "https://www.chess.com"]

[Event "Titled Tuesday Blitz May 2 Early 2023"]
[White "Tristan, Leonardo"]
[Black "Yu, Yangyi"]
[WhiteFideId "113816"]
[BlackFideId "8603820"]
[WhiteElo "2461"]
[BlackElo "2783"]
[Result "0-1"]
[Round "03"]
[TimeControl "180+2"]
[Date "2023.05.02"]
[WhiteClock "0:00:07"]
[BlackClock "0:00:16"]

1. d4 {[%clk 0:03:00]}  Nf6 {[%clk 0:02:58]} 2. Nf3 {[%clk 0:03:01]}  e6 {[%clk 0:02:56]} 3. Bf4 {[%clk 0:03:00]}  c5 {[%clk 0:02:52]} 4. c3 {[%clk 0:02:59]}  Nc6 {[%clk 0:02:47]} 5. e3 {[%clk 0:02:59]}  Be7 {[%clk 0:02:45]} 6. h3 {[%clk 0:02:56]}  Qb6 {[%clk 0:02:40]} 7. Qb3 {[%clk 0:02:55]}  d5 {[%clk 0:02:38]} 8. Nbd2 {[%clk 0:02:55]}  O-O {[%clk 0:02:38]} 9. Be2 {[%clk 0:02:52]}  Bd7 {[%clk 0:02:18]} 10. O-O {[%clk 0:02:51]}  Qxb3 {[%clk 0:02:14]} 11. axb3 {[%clk 0:02:51]}  a6 {[%clk 0:02:14]} 12. dxc5 {[%clk 0:02:49]}  Bxc5 {[%clk 0:02:14]} 13. b4 {[%clk 0:02:49]}  Be7 {[%clk 0:02:13]} 14. Bd3 {[%clk 0:02:28]}  Rfd8 {[%clk 0:02:01]} 15. e4 {[%clk 0:02:15]}  Be8 {[%clk 0:01:51]} 16. e5 {[%clk 0:02:03]}  Nd7 {[%clk 0:01:50]} 17. Nb3 {[%clk 0:02:00]}  f6 {[%clk 0:01:48]} 18. Rfe1 {[%clk 0:01:48]}  Bf7 {[%clk 0:01:40]} 19. exf6 {[%clk 0:01:24]}  gxf6 {[%clk 0:01:39]} 20. Bc7 {[%clk 0:01:24]}  Rdc8 {[%clk 0:01:34]} 21. Bg3 {[%clk 0:01:25]}  e5 {[%clk 0:01:34]} 22. Bf5 {[%clk 0:01:25]}  Rd8 {[%clk 0:01:33]} 23. Na5 {[%clk 0:01:01]}  Nxa5 {[%clk 0:01:31]} 24. Rxa5 {[%clk 0:00:59]}  Nb6 {[%clk 0:01:31]} 25. Nd2 {[%clk 0:00:45]}  Kg7 {[%clk 0:01:09]} 26. f4 {[%clk 0:00:44]}  e4 {[%clk 0:01:04]} 27. Bf2 {[%clk 0:00:44]}  Nc8 {[%clk 0:00:57]} 28. Nb3 {[%clk 0:00:39]}  Nd6 {[%clk 0:00:54]} 29. Nd4 {[%clk 0:00:40]}  Kg8 {[%clk 0:00:43]} 30. Re3 {[%clk 0:00:36]}  Nc4 {[%clk 0:00:38]} 31. Rg3+ {[%clk 0:00:36]}  Kh8 {[%clk 0:00:38]} 32. Ra2 {[%clk 0:00:34]}  Bd6 {[%clk 0:00:39]} 33. b3 {[%clk 0:00:28]}  Nb6 {[%clk 0:00:27]} 34. Rg4 {[%clk 0:00:29]}  Nd7 {[%clk 0:00:26]} 35. Rh4 {[%clk 0:00:28]}  Nf8 {[%clk 0:00:26]} 36. Bg4 {[%clk 0:00:06]}  Ng6 {[%clk 0:00:24]} 37. Rh5 {[%clk 0:00:05]}  Bxf4 {[%clk 0:00:23]} 38. Rf5 {[%clk 0:00:06]}  Be5 {[%clk 0:00:22]} 39. h4 {[%clk 0:00:04]}  Rac8 {[%clk 0:00:20]} 40. h5 {[%clk 0:00:03]}  Ne7 {[%clk 0:00:20]} 41. Rxe5 {[%clk 0:00:03]}  fxe5 {[%clk 0:00:21]} 42. Bxc8 {[%clk 0:00:04]}  Rxc8 {[%clk 0:00:21]} 43. Ne2 {[%clk 0:00:04]}  Bxh5 {[%clk 0:00:21]} 44. Ng3 {[%clk 0:00:03]}  Bg4 {[%clk 0:00:21]} 45. c4 {[%clk 0:00:02]}  h5 {[%clk 0:00:15]} 46. Bc5 {[%clk 0:00:01]}  Nf5 {[%clk 0:00:13]} 47. cxd5 {[%clk 0:00:01]}  Nxg3 {[%clk 0:00:13]} 48. d6 {[%clk 0:00:01]}  Ne2+ {[%clk 0:00:13]} 49. Kh2 {[%clk 0:00:02]}  Nd4 {[%clk 0:00:13]} 50. Rd2 {[%clk 0:00:02]}  e3 {[%clk 0:00:12]} 51. Rxd4 {[%clk 0:00:02]}  exd4 {[%clk 0:00:12]} 52. Bxd4+ {[%clk 0:00:03]}  Kg8 {[%clk 0:00:13]} 53. Bxe3 {[%clk 0:00:04]}  Rd8 {[%clk 0:00:12]} 54. Bf4 {[%clk 0:00:04]}  Kf7 {[%clk 0:00:12]} 55. Kg3 {[%clk 0:00:05]}  Ke6 {[%clk 0:00:13]} 56. Kh4 {[%clk 0:00:06]}  Rd7 {[%clk 0:00:14]} 57. Kg5 {[%clk 0:00:05]}  Rxd6 {[%clk 0:00:14]} 58. Bxd6 {[%clk 0:00:06]}  Kxd6 {[%clk 0:00:15]} 59. Kf6 {[%clk 0:00:06]}  Kc6 {[%clk 0:00:15]} 60. b5+ {[%clk 0:00:07]}  Kxb5 {[%clk 0:00:16]} 0-1


[Site "https://www.chess.com"]

[Event "Titled Tuesday Blitz May 2 Early 2023"]
[White "Weetik, Vjacheslav"]
[Black "Martinez Alcantara, Jose Eduardo"]
[WhiteFideId "4153472"]
[BlackFideId "3805662"]
[WhiteElo "2469"]
[BlackElo "2711"]
[Result "1-0"]
[Round "03"]
[TimeControl "180+2"]
[Date "2023.05.02"]
[WhiteClock "0:00:05"]
[BlackClock "0:00:17"]

1. e4 {[%clk 0:02:56]}  c5 {[%clk 0:02:59]} 2. Nf3 {[%clk 0:02:57]}  d6 {[%clk 0:02:56]} 3. Bb5+ {[%clk 0:02:55]}  Nd7 {[%clk 0:02:56]} 4. c3 {[%clk 0:02:48]}  a6 {[%clk 0:02:47]} 5. Ba4 {[%clk 0:02:48]}  b5 {[%clk 0:02:47]} 6. Bc2 {[%clk 0:02:48]}  Bb7 {[%clk 0:02:48]} 7. O-O {[%clk 0:02:48]}  Ngf6 {[%clk 0:02:48]} 8. Re1 {[%clk 0:02:45]}  Qc7 {[%clk 0:02:46]} 9. d3 {[%clk 0:02:35]}  g6 {[%clk 0:02:46]} 10. h3 {[%clk 0:02:26]}  Bg7 {[%clk 0:02:46]} 11. Bf4 {[%clk 0:02:26]}  O-O {[%clk 0:02:46]} 12. Nbd2 {[%clk 0:02:25]}  e5 {[%clk 0:02:46]} 13. Bh2 {[%clk 0:02:09]}  Rfe8 {[%clk 0:02:45]} 14. Rc1 {[%clk 0:02:07]}  Qb6 {[%clk 0:02:40]} 15. Bb3 {[%clk 0:01:42]}  Bh6 {[%clk 0:02:33]} 16. Rb1 {[%clk 0:01:28]}  Rac8 {[%clk 0:02:33]} 17. Bg3 {[%clk 0:01:27]}  Qc7 {[%clk 0:02:26]} 18. Bh4 {[%clk 0:01:26]}  Bg7 {[%clk 0:02:21]} 19. Ng5 {[%clk 0:00:45]}  Re7 {[%clk 0:02:20]} 20. a4 {[%clk 0:00:43]}  Nb6 {[%clk 0:02:19]} 21. a5 {[%clk 0:00:38]}  Nbd7 {[%clk 0:02:19]} 22. Ra1 {[%clk 0:00:39]}  h6 {[%clk 0:02:16]} 23. Ngf3 {[%clk 0:00:39]}  Ree8 {[%clk 0:02:16]} 24. Qb1 {[%clk 0:00:31]}  Nf8 {[%clk 0:02:14]} 25. d4 {[%clk 0:00:28]}  c4 {[%clk 0:02:14]} 26. Bc2 {[%clk 0:00:28]}  Ne6 {[%clk 0:02:14]} 27. d5 {[%clk 0:00:23]}  Nc5 {[%clk 0:02:14]} 28. Nh2 {[%clk 0:00:18]}  Rf8 {[%clk 0:02:12]} 29. Ng4 {[%clk 0:00:18]}  Nh7 {[%clk 0:02:06]} 30. Ne3 {[%clk 0:00:13]}  Rce8 {[%clk 0:02:05]} 31. b4 {[%clk 0:00:13]}  Nd7 {[%clk 0:01:59]} 32. Qd1 {[%clk 0:00:09]}  Bc8 {[%clk 0:01:59]} 33. Qe2 {[%clk 0:00:09]}  Ndf6 {[%clk 0:01:59]} 34. Ndxc4 {[%clk 0:00:09]}  bxc4 {[%clk 0:01:59]} 35. Qxc4 {[%clk 0:00:09]}  Qb8 {[%clk 0:01:59]} 36. Qb3 {[%clk 0:00:09]}  Nh5 {[%clk 0:01:57]} 37. c4 {[%clk 0:00:09]}  Bf6 {[%clk 0:01:54]} 38. Bxf6 {[%clk 0:00:09]}  N7xf6 {[%clk 0:01:55]} 39. c5 {[%clk 0:00:09]}  Nf4 {[%clk 0:01:55]} 40. c6 {[%clk 0:00:09]}  Nh7 {[%clk 0:01:51]} 41. Nf1 {[%clk 0:00:09]}  Ng5 {[%clk 0:01:51]} 42. h4 {[%clk 0:00:09]}  Nh7 {[%clk 0:01:38]} 43. Rab1 {[%clk 0:00:09]}  Qc7 {[%clk 0:01:36]} 44. b5 {[%clk 0:00:08]}  axb5 {[%clk 0:01:35]} 45. Qxb5 {[%clk 0:00:09]}  Qe7 {[%clk 0:01:35]} 46. g3 {[%clk 0:00:10]}  Nh3+ {[%clk 0:01:35]} 47. Kg2 {[%clk 0:00:10]}  g5 {[%clk 0:01:35]} 48. Ne3 {[%clk 0:00:05]}  gxh4 {[%clk 0:01:34]} 49. Rh1 {[%clk 0:00:05]}  Qg5 {[%clk 0:01:31]} 50. Rxh3 {[%clk 0:00:04]}  Bxh3+ {[%clk 0:01:31]} 51. Kxh3 {[%clk 0:00:05]}  hxg3 {[%clk 0:01:30]} 52. Rg1 {[%clk 0:00:06]}  Kh8 {[%clk 0:01:29]} 53. Rxg3 {[%clk 0:00:06]}  Qf4 {[%clk 0:01:30]} 54. Kg2 {[%clk 0:00:05]}  Rg8 {[%clk 0:01:31]} 55. Qe2 {[%clk 0:00:05]}  Rxg3+ {[%clk 0:01:19]} 56. fxg3 {[%clk 0:00:05]}  Qg5 {[%clk 0:01:20]} 57. Nf5 {[%clk 0:00:05]}  Rg8 {[%clk 0:01:15]} 58. Qf2 {[%clk 0:00:05]}  Qf6 {[%clk 0:01:03]} 59. a6 {[%clk 0:00:05]}  h5 {[%clk 0:01:03]} 60. a7 {[%clk 0:00:06]}  Ra8 {[%clk 0:01:04]} 61. Qb6 {[%clk 0:00:05]}  Rg8 {[%clk 0:00:34]} 62. Qb8 {[%clk 0:00:04]}  Qg5 {[%clk 0:00:35]} 63. a8=Q {[%clk 0:00:01]}  Qd2+ {[%clk 0:00:34]} 64. Kh1 {[%clk 0:00:01]}  Qc1+ {[%clk 0:00:33]} 65. Kh2 {[%clk 0:00:01]}  Qxc2+ {[%clk 0:00:32]} 66. Kh1 {[%clk 0:00:02]}  Qxe4+ {[%clk 0:00:32]} 67. Kh2 {[%clk 0:00:03]}  Qe2+ {[%clk 0:00:26]} 68. Kg1 {[%clk 0:00:03]}  Qe1+ {[%clk 0:00:25]} 69. Kg2 {[%clk 0:00:02]}  Qd2+ {[%clk 0:00:25]} 70. Kg1 {[%clk 0:00:02]}  Qd1+ {[%clk 0:00:25]} 71. Kh2 {[%clk 0:00:03]}  Qd2+ {[%clk 0:00:18]} 72. Kg1 {[%clk 0:00:03]}  Qc1+ {[%clk 0:00:16]} 73. Kh2 {[%clk 0:00:03]}  Qc2+ {[%clk 0:00:16]} 74. Kg1 {[%clk 0:00:04]}  Qc5+ {[%clk 0:00:16]} 75. Kh2 {[%clk 0:00:03]}  Qc2+ {[%clk 0:00:16]} 76. Kg1 {[%clk 0:00:03]}  Qd1+ {[%clk 0:00:17]} 77. Kh2 {[%clk 0:00:04]}  Qe2+ {[%clk 0:00:16]} 78. Kg1 {[%clk 0:00:04]}  Qe1+ {[%clk 0:00:16]} 79. Kh2 {[%clk 0:00:04]}  Qf2+ {[%clk 0:00:15]} 80. Kh1 {[%clk 0:00:05]}  Nf6 {[%clk 0:00:11]} 81. Qxg8+ {[%clk 0:00:04]}  Nxg8 {[%clk 0:00:12]} 82. Nh4 {[%clk 0:00:03]}  Qf1+ {[%clk 0:00:12]} 83. Kh2 {[%clk 0:00:04]}  Qe2+ {[%clk 0:00:11]} 84. Ng2 {[%clk 0:00:04]}  Kg7 {[%clk 0:00:12]} 85. c7 {[%clk 0:00:05]}  Nf6 {[%clk 0:00:12]} 86. c8=Q {[%clk 0:00:05]}  Ng4+ {[%clk 0:00:13]} 87. Kh3 {[%clk 0:00:06]}  Nf2+ {[%clk 0:00:13]} 88. Kh2 {[%clk 0:00:06]}  Ng4+ {[%clk 0:00:14]} 89. Kh3 {[%clk 0:00:06]}  Nf2+ {[%clk 0:00:15]} 90. Kh4 {[%clk 0:00:07]}  Ng4 {[%clk 0:00:15]} 91. Qf8+ {[%clk 0:00:06]}  Kf6 {[%clk 0:00:16]} 92. Qh8+ {[%clk 0:00:06]}  Kf5 {[%clk 0:00:17]} 93. Qxh5+ {[%clk 0:00:05]}  Kf6 {[%clk 0:00:17]} 94. Qg5# {[%clk 0:00:05]} 1-0


[Site "https://www.chess.com"]